fUST/lending_fUST_20240807
["ID","MTS","AMOUNT","RATE_DAILY","PERIOD"]
[334397083,1723029074646,-350.408869,0.00033944,2]
[334397084,1723029074656,-183.57603,0.00033944,2]
[334397085,1723029074665,-184.378369,0.00033944,2]
[334397086,1723029074675,-194.971646,0.00033944,2]
[334397087,1723029074684,-2000.0,0.0003397,14]
[334397088,1723029074693,-500.0,0.00033972,2]
[334397089,1723029074702,-1053.34,0.00033972,14]
[334397090,1723029074711,-500.0,0.00033972,14]
[334397091,1723029074721,-500.0,0.00033972,14]
[334397092,1723029074730,-1009.34,0.00033972,14]
[334397093,1723029074739,-2387.52,0.00033972,14]
[334397094,1723029074748,-500.0,0.00033972,14]
[334397095,1723029074758,-500.0,0.00033972,14]
[334397096,1723029074767,-540.78,0.00033972,14]
[334397097,1723029074777,-558.5,0.00033972,14]
[334397098,1723029074787,-2183.56,0.00033972,14]
[334397099,1723029074796,-635.93,0.00033972,14]
[334397100,1723029074805,-420.01614469,0.00033972,14]
[334397101,1723029074814,-614.31,0.00033972,14]
[334397102,1723029074824,-500.0,0.00033972,14]
[334397103,1723029074833,-1090.48,0.00033972,14]
[334397104,1723029074843,-500.0,0.00033972,14]
[334397105,1723029074853,-983.41,0.00033972,14]
[334397106,1723029074862,-500.0,0.00033972,14]
[334397107,1723029074872,-500.0,0.00033972,14]
[334397108,1723029074882,-500.0,0.00033972,14]
[334397109,1723029074891,-1237.41,0.00033972,14]
[334397110,1723029074900,-500.0,0.00033972,14]
[334397111,1723029074910,-901.85,0.00033972,14]
[334397112,1723029074919,-500.0,0.00033972,14]
[334397113,1723029074929,-500.0,0.00033972,14]
[334397114,1723029074938,-500.0,0.00033972,14]
[334397115,1723029074948,-600.82881919,0.00033972,14]
[334397116,1723029074957,-705.74,0.00033972,14]
[334397117,1723029074967,-867.95,0.00033972,14]
[334397118,1723029074976,-500.0,0.00033972,14]
[334397119,1723029074986,-551.10239788,0.00033972,14]
[334397120,1723029074997,-562.02525736,0.00033972,14]
[334397121,1723029075009,-890.32,0.00033972,14]
[334397122,1723029075019,-500.0,0.00033972,14]
[334397123,1723029075028,-500.0,0.00033972,14]
[334397124,1723029075039,-500.0,0.00033972,14]
[334397125,1723029075049,-500.0,0.00033972,14]
[334397126,1723029075058,-641.8,0.00033972,14]
[334397127,1723029075068,-500.0,0.00033972,14]
[334397128,1723029075078,-500.0,0.00033972,14]
[334397129,1723029075088,-500.0,0.00033972,14]
[334397130,1723029075101,-663.8,0.00033972,14]
[334397131,1723029075111,-500.0,0.00033972,14]
[334397132,1723029075121,-500.0,0.00033972,14]
[334397133,1723029075130,-500.0,0.00033972,14]
[334397134,1723029075140,-500.0,0.00033972,14]
[334397135,1723029075149,-500.0,0.00033972,14]
[334397136,1723029075158,-500.0,0.00033972,14]
[334397137,1723029075167,-500.0,0.00033972,14]
[334397138,1723029075177,-610.03,0.00033972,14]
[334397139,1723029075187,-500.0,0.00033972,14]
[334397140,1723029075197,-500.0,0.00033972,14]
[334397141,1723029075207,-639.90038331,0.00033972,14]
[334397142,1723029075216,-500.0,0.00033972,14]
[334397143,1723029075225,-1049.44,0.00033972,14]
[334397144,1723029075235,-658.92,0.00033972,14]
[334397145,1723029075244,-500.0,0.00033972,14]
[334397146,1723029075254,-634.91,0.00033972,14]
[334397147,1723029075263,-500.0,0.00033972,14]
[334397148,1723029075273,-618.32,0.00033972,14]
[334397149,1723029075282,-841.16,0.00033972,14]
[334397150,1723029075291,-500.0,0.00033972,14]
[334397151,1723029075301,-543.25,0.00033972,14]
[334397152,1723029075311,-508.16,0.00033972,14]
[334397153,1723029075320,-2103.08,0.00033972,14]
[334397154,1723029075329,-457.3955313,0.00033972,14]
[334397155,1723029075341,-500.0,0.00033972,14]
[334397156,1723029075351,-500.0,0.00033972,14]
[334397157,1723029075360,-500.0,0.00033972,14]
[334397158,1723029075370,-1135.85,0.00033972,14]
[334397159,1723029075379,-500.0,0.00033972,14]
[334397160,1723029075389,-500.0,0.00033972,14]
[334397161,1723029075399,-726.44,0.00033972,14]
[334397162,1723029075408,-606.85,0.00033972,14]
[334397163,1723029075418,-500.0,0.00033972,14]
[334397164,1723029075427,-665.91,0.00033972,14]
[334397165,1723029075436,-782.36,0.00033972,14]
[334397166,1723029075446,-500.0,0.00033972,14]
[334397167,1723029075455,-653.76,0.00033972,14]
[334397168,1723029075465,-500.0,0.00033972,14]
[334397169,1723029075475,-500.0,0.00033972,14]
[334397170,1723029075484,-572.65,0.00033972,14]
[334397171,1723029075494,-552.06,0.00033972,14]
[334397172,1723029075504,-2180.22,0.00033972,14]
[334397173,1723029075513,-723.92,0.00033972,14]
[334397174,1723029075523,-500.0038056,0.00033972,14]
[334397175,1723029075533,-531.95,0.00033972,14]
[334397176,1723029075542,-738.14,0.00033972,14]
[334397177,1723029075552,-500.0,0.00033972,14]
[334397178,1723029075562,-500.0,0.00033972,14]
[334397179,1723029075571,-500.0,0.00033972,14]
[334397180,1723029075581,-500.0,0.00033972,14]
[334397181,1723029075590,-500.0,0.00033972,14]
[334397182,1723029075600,-500.0,0.00033972,14]
[334397183,1723029075609,-500.0,0.00033972,14]
[334397184,1723029075618,-500.0,0.00033972,14]
[334397185,1723029075628,-561.59,0.00033972,14]
[334397186,1723029075637,-588.48271958,0.00033972,14]
[334397187,1723029075648,-500.0,0.00033972,14]
[334397188,1723029075658,-500.0,0.00033972,14]
[334397189,1723029075668,-500.0,0.00033972,14]
[334397190,1723029075677,-526.38,0.00033972,14]
[334397191,1723029075687,-500.0,0.00033972,14]
[334397192,1723029075697,-655.78,0.00033972,14]
[334397193,1723029075707,-500.0,0.00033972,14]
[334397194,1723029075716,-997.18,0.00033972,14]
[334397195,1723029075726,-1854.37,0.00033972,14]
[334397196,1723029075736,-500.0,0.00033972,14]
[334397197,1723029075746,-200.0,0.00033972,7]
[334397198,1723029075756,-1754.86,0.00033972,14]
[334397199,1723029075766,-500.0,0.00033972,14]
[334397200,1723029075776,-500.0,0.00033972,14]
[334397201,1723029075785,-637.98,0.00033972,14]
[334397202,1723029075795,-500.0,0.00033972,14]
[334397203,1723029075805,-2280.75,0.00033972,14]
[334397204,1723029075815,-524.01,0.00033972,14]
[334397205,1723029075825,-500.0,0.00033972,14]
[334397206,1723029075834,-500.0,0.00033972,14]
[334397207,1723029075845,-500.0,0.00033972,14]
[334397208,1723029075854,-500.0,0.00033972,14]
[334397209,1723029075863,-528.8,0.00033972,14]
[334397210,1723029075874,-563.12225538,0.00033972,14]
[334397211,1723029075883,-500.0,0.00033972,14]
[334397212,1723029075893,-1498.25,0.00033972,14]
[334397213,1723029075902,-693.96,0.00033972,14]
[334397214,1723029075911,-500.0,0.00033972,14]
[334397215,1723029075921,-500.0,0.00033972,14]
[334397216,1723029075931,-627.54,0.00033972,14]
[334397217,1723029075941,-500.0,0.00033972,14]
[334397218,1723029075951,-3342.3,0.00033972,14]
[334397219,1723029075961,-531.99,0.00033972,14]
[334397220,1723029075970,-500.0,0.00033972,14]
[334397221,1723029075980,-1236.8,0.00033972,14]
[334397222,1723029075992,-500.0,0.00033972,14]
[334397223,1723029076002,-728.37,0.00033972,14]
[334397224,1723029076012,-1161.27,0.00033972,14]
[334397225,1723029076021,-500.0,0.00033972,14]
[334397226,1723029076031,-3031.19,0.00033972,14]
[334397227,1723029076041,-938.86,0.00033972,14]
[334397228,1723029076050,-500.0,0.00033972,14]
[334397229,1723029076060,-500.0,0.00033972,14]
[334397230,1723029076071,-500.0,0.00033972,14]
[334397231,1723029076082,-1919.23,0.00033972,14]
[334397232,1723029076092,-1225.39,0.00033972,14]
[334397233,1723029076102,-884.22,0.00033972,14]
[334397234,1723029076112,-1075.22,0.00033972,14]
[334397235,1723029076122,-500.0,0.00033972,14]
[334397236,1723029076132,-500.0,0.00033972,14]
[334397237,1723029076142,-510.68788042,0.00033972,14]
[334397238,1723029076152,-799.55,0.00033972,14]
[334397239,1723029076163,-665.15,0.00033972,14]
[334397240,1723029076173,-578.83,0.00033972,14]
[334397241,1723029076183,-500.0,0.00033972,14]
[334397242,1723029076194,-500.0,0.00033972,14]
[334397243,1723029076203,-500.0,0.00033972,14]
[334397244,1723029076213,-1407.14,0.00033972,14]
[334397245,1723029076223,-538.06,0.00033972,14]
[334397246,1723029076233,-500.0,0.00033972,14]
[334397247,1723029076243,-500.0,0.00033972,14]
[334397248,1723029076255,-500.0,0.00033972,14]
[334397249,1723029076266,-1237.71,0.00033972,14]
[334397250,1723029076275,-3398.02,0.00033972,14]
[334397251,1723029076285,-2584.23,0.00033972,14]
[334397252,1723029076296,-798.6,0.00033972,14]
[334397253,1723029076305,-604.27,0.00033972,14]
[334397254,1723029076315,-500.0,0.00033972,14]
[334397255,1723029076325,-500.0,0.00033972,14]
[334397256,1723029076335,-500.0,0.00033972,14]
[334397257,1723029076347,-500.0,0.00033972,2]
[334397258,1723029076359,-500.0,0.00033972,14]
[334397259,1723029076369,-500.0,0.00033972,14]
[334397260,1723029076378,-500.0,0.00033972,14]
[334397261,1723029076388,-1456.08,0.00033972,14]
[334397262,1723029076398,-968.66,0.00033972,14]
[334397263,1723029076408,-500.0,0.00033972,14]
[334397264,1723029076418,-1104.57,0.00033972,14]
[334397265,1723029076428,-785.13,0.00033972,14]
[334397266,1723029076438,-1000.35,0.00033972,14]
[334397267,1723029076449,-678.62,0.00033972,14]
[334397268,1723029076458,-2102.23,0.00033972,14]
[334397269,1723029076468,-786.56,0.00033972,14]
[334397270,1723029076479,-1724.83,0.00033972,14]
[334397271,1723029076490,-294.37118352,0.00033972,14]
[334397272,1723029076500,-1026.47,0.00033972,14]
[334397273,1723029076510,-500.0,0.00033972,14]
[334397274,1723029076521,-2410.79,0.00033972,14]
[334397275,1723029076533,-1027.92,0.00033972,14]
[334397276,1723029076543,-572.28,0.00033972,14]
[334397277,1723029076553,-500.0,0.00033972,14]
[334397278,1723029076563,-827.4,0.00033972,14]
[334397279,1723029076573,-500.0,0.00033972,14]
[334397280,1723029076584,-500.0,0.00033972,14]
[334397281,1723029076596,-500.0,0.00033972,14]
[334397282,1723029076607,-500.0,0.00033972,14]
[334397283,1723029076616,-1638.94,0.00033972,14]
[334397284,1723029076626,-2976.45,0.00033972,14]
[334397285,1723029076637,-500.0,0.00033972,14]
[334397286,1723029076646,-500.0,0.00033972,14]
[334397287,1723029076655,-728.06,0.00033972,14]
[334397288,1723029076666,-500.0,0.00033972,14]
[334397289,1723029076676,-1275.04,0.00033972,14]
[334397290,1723029076687,-500.0,0.00033972,14]
[334397291,1723029076696,-1187.93,0.00033972,14]
[334397292,1723029076709,-645.93,0.00033972,14]
[334397293,1723029076719,-500.0,0.00033972,14]
[334397294,1723029076729,-1020.1,0.00033972,14]
[334397295,1723029076741,-500.0,0.00033972,14]
[334397296,1723029076753,-500.0,0.00033972,14]
[334397297,1723029076764,-581.74,0.00033972,14]
[334397298,1723029076773,-500.0,0.00033972,14]
[334397299,1723029076783,-720.42,0.00033972,14]
[334397300,1723029076792,-500.0,0.00033972,14]
[334397301,1723029076802,-923.4,0.00033972,14]
[334397302,1723029076813,-500.0,0.00033972,14]
[334397303,1723029076822,-500.0,0.00033972,14]
[334397304,1723029076832,-548.72,0.00033972,14]
[334397305,1723029076842,-534.66,0.00033972,14]
[334397306,1723029076851,-671.94,0.00033972,14]
[334397307,1723029076860,-2664.41,0.00033972,14]
[334397308,1723029076871,-500.0,0.00033972,14]
[334397309,1723029076882,-1512.23,0.00033972,14]
[334397310,1723029076892,-1144.37,0.00033972,14]
[334397311,1723029076903,-500.0,0.00033972,14]
[334397312,1723029076912,-518.05,0.00033972,14]
[334397313,1723029076923,-1021.34,0.00033972,14]
[334397314,1723029076934,-500.0,0.00033972,14]
[334397315,1723029076946,-2148.85,0.00033972,14]
[334397316,1723029076956,-500.0,0.00033972,14]
[334397317,1723029076966,-500.0,0.00033972,14]
[334397318,1723029076977,-500.0,0.00033972,14]
[334397319,1723029076987,-1093.31,0.00033972,14]
[334397320,1723029076999,-500.0,0.00033972,14]
[334397321,1723029077012,-2807.44,0.00033972,14]
[334397322,1723029077023,-500.0,0.00033972,14]
[334397323,1723029077036,-500.0,0.00033972,14]
[334397324,1723029077047,-500.0,0.00033972,14]
[334397325,1723029077058,-500.0,0.00033972,14]
[334397326,1723029077068,-647.5,0.00033972,14]
[334397327,1723029077081,-972.5,0.00033972,14]
[334397328,1723029077093,-2896.75,0.00033972,14]
[334397329,1723029077102,-836.81,0.00033972,14]
[334397330,1723029077112,-621.33,0.00033972,14]
[334397331,1723029077121,-500.0,0.00033972,14]
[334397332,1723029077130,-500.0,0.00033972,14]
[334397333,1723029077139,-877.3,0.00033972,14]
[334397334,1723029077148,-500.0,0.00033972,14]
[334397335,1723029077158,-646.55,0.00033972,14]
[334397336,1723029077168,-811.6,0.00033972,14]
[334397337,1723029077313,-519.26,0.00033972,14]
[334397338,1723029077323,-500.0,0.00033972,14]
[334397339,1723029077334,-3787.31,0.00033972,14]
[334397340,1723029077345,-676.38,0.00033972,14]
[334397341,1723029077355,-500.0,0.00033972,14]
[334397342,1723029077365,-1713.3,0.00033972,14]
[334397343,1723029077374,-500.0,0.00033972,14]
[334397344,1723029077384,-710.82,0.00033972,14]
[334397345,1723029077393,-3403.09,0.00033972,14]
[334397346,1723029077402,-500.0,0.00033972,14]
[334397347,1723029077411,-8008.66,0.00033972,14]
[334397348,1723029077420,-1695.73,0.00033972,14]
[334397349,1723029077429,-500.0,0.00033972,14]
[334397350,1723029077438,-2652.65,0.00033972,14]
[334397351,1723029077447,-500.0,0.00033972,14]
[334397352,1723029077457,-676.41,0.00033972,14]
[334397353,1723029077468,-4726.18,0.00033972,14]
[334397354,1723029077477,-631.77,0.00033972,14]
[334397355,1723029077487,-765.56,0.00033972,14]
[334397356,1723029077498,-524.76,0.00033972,14]
[334397357,1723029077508,-500.0,0.00033972,14]
[334397358,1723029077519,-500.0,0.00033972,14]
[334397359,1723029077529,-596.92,0.00033972,14]
[334397360,1723029077538,-2772.04,0.00033972,14]
[334397361,1723029077547,-872.47,0.00033972,14]
[334397362,1723029077556,-500.0,0.00033972,14]
[334397363,1723029077566,-500.0,0.00033972,14]
[334397364,1723029077575,-2850.24,0.00033972,14]
[334397365,1723029077584,-2368.38,0.00033972,14]
[334397366,1723029077595,-918.69,0.00033972,14]
[334397367,1723029077605,-1182.98,0.00033972,14]
[334397368,1723029077615,-500.0,0.00033972,14]
[334397369,1723029077624,-787.24,0.00033972,14]
[334397370,1723029077633,-500.0,0.00033972,14]
[334397371,1723029077642,-500.0,0.00033972,14]
[334397372,1723029077652,-748.79,0.00033972,14]
[334397373,1723029077662,-500.0,0.00033972,14]
[334397374,1723029077671,-1732.44,0.00033972,14]
[334397375,1723029077680,-1373.61,0.00033972,14]
[334397376,1723029077690,-244.35122185,0.00033972,14]
[334397377,1723029077700,-500.0,0.00033972,14]
[334397378,1723029077709,-1008.03,0.00033972,14]
[334397379,1723029077719,-705.51,0.00033972,14]
[334397380,1723029077730,-500.0,0.00033972,14]
[334397381,1723029077739,-5624.94,0.00033972,14]
[334397382,1723029077752,-4673.31,0.00033972,14]
[334397383,1723029077763,-2102.82,0.00033972,14]
[334397384,1723029077773,-683.38,0.00033972,14]
[334397385,1723029077783,-500.0,0.00033972,14]
[334397386,1723029077792,-500.0,0.00033972,14]
[334397387,1723029077802,-500.0,0.00033972,14]
[334397388,1723029077811,-500.0,0.00033972,14]
[334397389,1723029077820,-514.57431099,0.00033972,14]
[334397390,1723029077830,-1201.25,0.00033972,14]
[334397391,1723029077840,-5296.6,0.00033972,14]
[334397392,1723029077850,-500.0,0.00033972,14]
[334397393,1723029077859,-500.0,0.00033972,14]
[334397394,1723029077872,-754.45,0.00033972,14]
[334397395,1723029077883,-6120.77,0.00033972,14]
[334397396,1723029077894,-500.0,0.00033972,14]
[334397397,1723029077903,-4115.44,0.00033972,14]
[334397398,1723029077913,-500.0,0.00033972,14]
[334397399,1723029077922,-2356.09,0.00033972,14]
[334397400,1723029077933,-1016.46,0.00033972,14]
[334397401,1723029077945,-1373.79,0.00033972,14]
[334397402,1723029077956,-500.0,0.00033972,14]
[334397403,1723029077967,-27586.24,0.00033972,14]
[334397404,1723029077978,-641.2,0.00033972,14]
[334397405,1723029077988,-551.11,0.00033972,14]
[334397406,1723029077999,-2059.66,0.00033972,14]
[334397407,1723029078010,-884.77,0.00033972,14]
[334397408,1723029078020,-7553.97,0.00033972,14]
[334397409,1723029078030,-1858.24,0.00033972,14]
[334397410,1723029078040,-6001.15,0.00033972,14]
[334397411,1723029078050,-1904.11,0.00033972,14]
[334397412,1723029078061,-569.13402444,0.00033972,14]
[334397413,1723029078071,-3288.86,0.00033972,14]
[334397414,1723029078083,-577.95,0.00033972,14]
[334397415,1723029078096,-1446.23,0.00033972,14]
[334397416,1723029078106,-4804.12,0.00033972,14]
[334397417,1723029078116,-509.19,0.00033972,14]
[334397418,1723029078125,-873.14,0.00033972,14]
[334397419,1723029078136,-3091.7,0.00033972,14]
[334397420,1723029078147,-743.63,0.00033972,14]
[334397421,1723029078157,-1370.13,0.00033972,14]
[334397422,1723029078168,-18095.21,0.00033972,14]
[334397423,1723029078177,-500.0,0.00033972,14]
[334397424,1723029078187,-1609.93,0.00033972,14]
[334397425,1723029078199,-2388.37,0.00033972,14]
[334397426,1723029078209,-803.5,0.00033972,14]
[334397427,1723029078219,-4013.41,0.00033972,14]
[334397428,1723029078229,-602.9,0.00033972,14]
[334397429,1723029078239,-629.6,0.00033972,14]
[334397430,1723029078249,-2364.63,0.00033972,14]
[334397431,1723029078259,-1184.06,0.00033972,14]
[334397432,1723029078268,-500.0,0.00033972,14]
[334397433,1723029078278,-1150.86,0.00033972,14]
[334397434,1723029078287,-602.76,0.00033972,14]
[334397435,1723029078297,-20279.89,0.00033972,14]
[334397436,1723029078308,-500.0,0.00033972,14]
[334397437,1723029078317,-1372.29,0.00033972,14]
[334397438,1723029078327,-500.0,0.00033972,14]
[334397439,1723029078337,-11638.4,0.00033972,14]
[334397440,1723029078350,-500.0,0.00033972,14]
[334397441,1723029078365,-500.0,0.00033972,14]
[334397442,1723029078375,-500.0,0.00033972,14]
[334397443,1723029078384,-1433.62,0.00033972,14]
[334397444,1723029078393,-500.0,0.00033972,14]
[334397445,1723029078403,-761.0,0.00033972,14]
[334397446,1723029078413,-500.0,0.00033972,14]
[334397447,1723029078422,-1750.38,0.00033972,14]
[334397448,1723029078431,-512.68,0.00033972,14]
[334397449,1723029078441,-11428.84,0.00033972,14]
[334397450,1723029078450,-746.77,0.00033972,14]
[334397451,1723029078459,-1433.26,0.00033972,14]
[334397452,1723029078468,-2496.12,0.00033972,14]
[334397453,1723029078477,-2356.96,0.00033972,14]
[334397454,1723029078487,-2975.06,0.00033972,14]
[334397455,1723029078496,-3825.94,0.00033972,14]
[334397456,1723029078505,-1460.03,0.00033972,14]
[334397457,1723029078516,-500.0,0.00033972,14]
[334397458,1723029078527,-1424.73,0.00033972,14]
[334397459,1723029078538,-10865.29,0.00033972,14]
[334397460,1723029078548,-2785.33,0.00033972,14]
[334397461,1723029078562,-500.0,0.00033972,14]
[334397462,1723029078572,-249.8,0.00033972,14]
[334397463,1723029078582,-500.0,0.00033972,14]
[334397464,1723029078592,-536.47,0.00033972,14]
[334397465,1723029078602,-973.08,0.00033972,14]
[334397466,1723029078612,-500.0,0.00033972,14]
[334397467,1723029078623,-6834.28,0.00033972,14]
[334397468,1723029078634,-795.32,0.00033972,14]
[334397469,1723029078644,-1637.95,0.00033972,14]
[334397470,1723029078653,-500.0,0.00033972,14]
[334397471,1723029078663,-500.0,0.00033972,14]
[334397472,1723029078672,-1190.28,0.00033972,14]
[334397473,1723029078684,-5590.89,0.00033972,14]
[334397474,1723029078696,-294.65137535,0.00033972,14]
[334397475,1723029078706,-502.77,0.00033972,14]
[334397476,1723029078716,-2520.26,0.00033972,14]
[334397477,1723029078727,-1612.65,0.00033972,14]
[334397478,1723029078738,-1790.94,0.00033972,14]
[334397479,1723029078747,-500.0,0.00033972,14]
[334397480,1723029078758,-500.0,0.00033972,14]
[334397481,1723029078768,-1565.92,0.00033972,14]
[334397482,1723029078778,-500.0,0.00033972,14]
[334397483,1723029078788,-739.25,0.00033972,14]
[334397484,1723029078799,-500.0,0.00033972,14]
[334397485,1723029078809,-728.33,0.00033972,14]
[334397486,1723029078819,-709.69,0.00033972,14]
[334397487,1723029078829,-656.7,0.00033972,14]
[334397488,1723029078840,-2157.08,0.00033972,14]
[334397489,1723029078851,-500.0,0.00033972,14]
[334397490,1723029078860,-2547.19,0.00033972,14]
[334397491,1723029078870,-1757.34,0.00033972,14]
[334397492,1723029078880,-1138.49,0.00033972,14]
[334397493,1723029078891,-1214.45,0.00033972,14]
[334397494,1723029078902,-943.14,0.00033972,14]
[334397495,1723029078912,-814.59,0.00033972,14]
[334397496,1723029078922,-500.0,0.00033972,14]
[334397497,1723029078933,-1713.75,0.00033972,14]
[334397498,1723029078944,-849.27,0.00033972,14]
[334397499,1723029078954,-500.0,0.00033972,14]
[334397500,1723029078964,-5000.0,0.00034,34]
[334397501,1723029078974,-200000.0,0.00034,30]
[334397502,1723029078984,-524.0,0.00034,2]
[334397503,1723029078997,-2222.93172395,0.00034145,2]
[334397504,1723029079008,-2000.0,0.00034244,14]
[334397505,1723029079018,-538.42146132,0.00034246,2]
[334397506,1723029079027,-1053.34,0.00034246,14]
[334397507,1723029079040,-500.0,0.00034246,14]
[334397508,1723029079051,-631.5221815,0.00034246,14]
[334397509,1723029079061,-1009.34,0.00034246,14]
[334397510,1723029079071,-2387.52,0.00034246,14]
[334397511,1723029079083,-500.0,0.00034246,14]
[334397512,1723029079093,-500.0,0.00034246,14]
[334397513,1723029079113,-540.78,0.00034246,14]
[334397514,1723029079123,-558.5,0.00034246,14]
[334397515,1723029079133,-2183.56,0.00034246,14]
[334397516,1723029079143,-635.93,0.00034246,14]
[334397517,1723029079152,-614.31,0.00034246,14]
[334397518,1723029079161,-500.0,0.00034246,14]
[334397519,1723029079171,-1090.48,0.00034246,14]
[334397520,1723029079181,-500.0,0.00034246,14]
[334397521,1723029079190,-983.41,0.00034246,14]
[334397522,1723029079199,-324.57339404,0.00034246,14]
[334397523,1723029079209,-500.0,0.00034246,14]
[334397524,1723029079219,-500.0,0.00034246,14]
[334397525,1723029079228,-1237.41,0.00034246,14]
[334397526,1723029079237,-500.0,0.00034246,14]
[334397527,1723029079246,-901.85,0.00034246,14]
[334397528,1723029079255,-612.84940176,0.00034246,14]
[334397529,1723029079265,-500.0,0.00034246,14]
[334397530,1723029079274,-500.0,0.00034246,14]
[334397531,1723029079283,-705.74,0.00034246,14]
[334397532,1723029079293,-867.95,0.00034246,14]
[334397533,1723029079302,-525.21235325,0.00034246,14]
[334397534,1723029079311,-890.32,0.00034246,14]
[334397535,1723029079321,-500.0,0.00034246,14]
[334397536,1723029079331,-500.0,0.00034246,14]
[334397537,1723029079341,-500.0,0.00034246,14]
[334397538,1723029079352,-588.43577468,0.00034246,14]
[334397539,1723029079361,-641.8,0.00034246,14]
[334397540,1723029079370,-500.0,0.00034246,14]
[334397541,1723029079380,-663.8,0.00034246,14]
[334397542,1723029079389,-500.0,0.00034246,14]
[334397543,1723029079398,-500.0,0.00034246,14]
[334397544,1723029079408,-500.0,0.00034246,14]
[334397545,1723029079417,-500.0,0.00034246,14]
[334397546,1723029079427,-500.0,0.00034246,14]
[334397547,1723029079436,-500.0,0.00034246,14]
[334397548,1723029079446,-500.0,0.00034246,14]
[334397549,1723029079455,-610.03,0.00034246,14]
[334397550,1723029079465,-500.0,0.00034246,14]
[334397551,1723029079475,-500.0,0.00034246,14]
[334397552,1723029079486,-500.0,0.00034246,14]
[334397553,1723029079496,-1049.44,0.00034246,14]
[334397554,1723029079505,-658.92,0.00034246,14]
[334397555,1723029079516,-474.59980728,0.00034246,14]
[334397556,1723029079526,-634.91,0.00034246,14]
[334397557,1723029079535,-500.0,0.00034246,14]
[334397558,1723029079546,-618.32,0.00034246,14]
[334397559,1723029079556,-841.16,0.00034246,14]
[334397560,1723029079566,-500.0,0.00034246,14]
[334397561,1723029079576,-508.16,0.00034246,14]
[334397562,1723029079585,-543.25,0.00034246,14]
[334397563,1723029079597,-2103.08,0.00034246,14]
[334397564,1723029079606,-500.0,0.00034246,14]
[334397565,1723029079616,-500.0,0.00034246,14]
[334397566,1723029079625,-500.0,0.00034246,14]
[334397567,1723029079635,-1135.85,0.00034246,14]
[334397568,1723029079645,-500.0,0.00034246,14]
[334397569,1723029079654,-500.0,0.00034246,14]
[334397570,1723029079664,-726.44,0.00034246,14]
[334397571,1723029079673,-606.85,0.00034246,14]
[334397572,1723029079683,-591.38026182,0.00034246,14]
[334397573,1723029079693,-665.91,0.00034246,14]
[334397574,1723029079702,-782.36,0.00034246,14]
[334397575,1723029079712,-500.0,0.00034246,14]
[334397576,1723029079722,-653.76,0.00034246,14]
[334397577,1723029079733,-500.0,0.00034246,14]
[334397578,1723029079744,-500.0,0.00034246,14]
[334397579,1723029079755,-572.65,0.00034246,14]
[334397580,1723029079765,-552.06,0.00034246,14]
[334397581,1723029079776,-723.92,0.00034246,14]
[334397582,1723029079785,-2180.22,0.00034246,14]